fUSD/lending_fUSD_20260126
["ID","MTS","AMOUNT","RATE_DAILY","PERIOD"]
[403599561,1769409042475,-596.15017674,0.0001606,2]
[403599562,1769409042484,-500.0,0.0001606,2]
[403599563,1769409042494,-500.0,0.0001606,2]
[403599564,1769409042503,-150.0,0.0001606,2]
[403599565,1769409042512,-675.38550237,0.0001606,2]
[403599566,1769409042523,-472324.22705418,0.00016061,2]
[403599567,1769409042537,-459.31,0.00016061,2]
[403599568,1769409042570,-843.40981153,0.00016061,2]
[403599569,1769409042680,-395.92311807,0.00016061,2]
[403599570,1769409042692,-315.32000001,0.00016061,2]
[403599574,1769409042728,-890.21798263,0.00016061,2]
[403599577,1769409042742,-400.88155885,0.00016061,2]
[403599598,1769409046074,-1000.0,0.00015286,2]
[403599599,1769409046084,-786.9332,0.00016061,2]
[403599600,1769409046202,-1837.88690498,0.00016061,2]
[403599601,1769409046214,-3465.49983547,0.00016061,2]
[403599602,1769409046310,-33095.03816021,0.00016061,2]
[403599632,1769410232419,-500.0,0.00011773,2]
[403599633,1769410232429,-176.92004919,0.00012321,2]
[403599634,1769410232444,-823.07995081,0.00012321,2]
[403599635,1769410232454,-236.10769508,0.00012868,2]
[403599636,1769410232565,-528.12118031,0.00012868,2]
[403599637,1769410232576,-240.86032752,0.00012868,2]
[403599638,1769410232587,-150.0,0.00013573,2]
[403599639,1769410232596,-150.0,0.00013811,2]
[403599640,1769410232606,-464.52,0.00014416,2]
[403599641,1769410232616,-318.15,0.00014427,2]
[403599642,1769410232626,-581.61290609,0.00014495,2]
[403599643,1769410232638,-418.38709391,0.00014495,2]
[403599644,1769410232648,-500.0,0.00014499,2]
[403599645,1769410232658,-150.0,0.0001458,2]
[403599646,1769410232667,-250.45243939,0.00014681,2]
[403599647,1769410232676,-279.94756633,0.00014845,2]
[403599648,1769410232686,-142.97974953,0.00014935,2]
[403599649,1769410232697,-24.67025047,0.00014935,2]
[403599650,1769410232707,-188.75,0.00014947,2]
[403599651,1769410232716,-188.75,0.0001497,2]
[403599652,1769410232726,-200.0,0.00014981,2]
[403599653,1769410232735,-188.75,0.00014994,2]
[403599654,1769410232745,-188.75,0.00015017,2]
[403599655,1769410232754,-188.75,0.00015041,2]
[403599656,1769410232763,-200.0,0.00015052,2]
[403599657,1769410232772,-188.75,0.00015065,2]
[403599658,1769410232782,-188.75,0.00015088,2]
[403599659,1769410232791,-188.75,0.00015112,2]
[403599660,1769410232801,-188.75,0.00015135,2]
[403599661,1769410232810,-318.15,0.00015148,2]
[403599662,1769410232819,-188.75,0.00015159,2]
[403599663,1769410232829,-188.75,0.00015183,2]
[403599664,1769410232838,-300.0,0.00015183,2]
[403599665,1769410232848,-188.75,0.00015206,2]
[403599666,1769410232857,-152.0,0.00015218,3]
[403599667,1769410232867,-188.75,0.0001523,2]
[403599668,1769410232876,-61.61485214,0.00015253,2]
[403599669,1769410232888,-127.13514786,0.00015253,2]
[403599670,1769410232899,-1811.22,0.00015272,2]
[403599671,1769410232909,-188.75,0.00015277,2]
[403599672,1769410232918,-188.75,0.00015301,2]
[403599673,1769410232928,-188.75,0.00015324,2]
[403599674,1769410232937,-188.75,0.00015348,2]
[403599675,1769410232946,-188.75,0.00015371,2]
[403599676,1769410232955,-501.03388044,0.00015385,2]
[403599677,1769410232965,-376.01573071,0.00015385,2]
[403599678,1769410232982,-123.98426929,0.00015385,2]
[403599679,1769410232993,-500.0,0.00015385,2]
[403599680,1769410233003,-500.0,0.00015385,2]
[403599681,1769410233014,-500.0,0.00015385,2]
[403599682,1769410233023,-188.75,0.00015395,2]
[403599683,1769410233032,-179.93,0.00015556,2]
[403599684,1769410233042,-12983.81625835,0.00015647,2]
[403599685,1769410233054,-429.03935746,0.00015647,2]
[403599686,1769410233065,-3373.61357432,0.00015647,2]
[403599687,1769410238155,-181725.13069907,0.00015647,2]
[403599716,1769410240882,-783.42104274,0.00015647,2]
[403599721,1769410240921,-800704.97906806,0.00015647,2]
[403599723,1769410240930,-865.33,0.00015676,2]
[403599725,1769410240939,-578.20924308,0.00015676,2]
[403599727,1769410240948,-209.40437684,0.00015676,2]
[403599729,1769410240957,-151.0,0.00015676,2]
[403599731,1769410240967,-151.0,0.00015676,2]
[403599733,1769410240975,-840.76606738,0.00015676,2]
[403599735,1769410240985,-151.0,0.00015676,2]
[403599737,1769410240994,-2500.0,0.00015676,2]
[403599738,1769410241003,-151.0,0.00015676,2]
[403599740,1769410241013,-2500.0,0.00015676,2]
[403599743,1769410241022,-151.0,0.00015676,2]
[403599744,1769410241032,-500.0,0.00015676,2]
[403599746,1769410241041,-151.0,0.00015676,2]
[403599748,1769410241051,-151.0,0.00015676,2]
[403599750,1769410241060,-151.0,0.00015676,2]
[403599752,1769410241068,-151.0,0.00015676,2]
[403599754,1769410241078,-151.2290817,0.00015676,2]
[403599756,1769410241087,-151.0,0.00015676,2]
[403599758,1769410241096,-174.61919141,0.00015676,2]
[403599760,1769410241105,-151.0,0.00015676,2]
[403599762,1769410241114,-151.0,0.00015676,2]
[403599764,1769410241124,-1000.0,0.00015676,2]
[403599766,1769410241133,-1000.0,0.00015676,2]
[403599768,1769410241143,-1000.0,0.00015676,2]
[403599770,1769410241152,-1000.0,0.00015676,2]
[403599772,1769410241161,-250.0,0.00015676,2]
[403599774,1769410241170,-1000.0,0.00015676,2]
[403599776,1769410241180,-1000.0,0.00015676,2]
[403599778,1769410241189,-250.0,0.00015676,2]
[403599780,1769410241199,-250.0,0.00015676,2]
[403599782,1769410241208,-1000.0,0.00015676,2]
[403599784,1769410241218,-250.0,0.00015676,2]
[403599786,1769410241228,-250.0,0.00015676,2]
[403599788,1769410241237,-1000.0,0.00015676,2]
[403599790,1769410241247,-250.0,0.00015676,2]
[403599792,1769410241256,-250.0,0.00015676,2]
[403599794,1769410241266,-1000.0,0.00015676,2]
[403599796,1769410241276,-250.0,0.00015676,2]
[403599798,1769410241285,-250.0,0.00015676,2]
[403599800,1769410241294,-1089.05491571,0.00015676,2]
[403599802,1769410241303,-250.0,0.00015676,2]
[403599804,1769410241312,-250.0,0.00015676,2]
[403599806,1769410241322,-250.0,0.00015676,2]
[403599808,1769410241332,-250.0,0.00015676,2]
[403599810,1769410241341,-250.0,0.00015676,2]
[403599812,1769410241352,-250.0,0.00015676,2]
[403599814,1769410241364,-250.0,0.00015676,2]
[403599816,1769410241373,-250.0,0.00015676,2]
[403599818,1769410241383,-250.0,0.00015676,2]
[403599820,1769410241395,-250.0,0.00015676,2]
[403599822,1769410241405,-250.0,0.00015676,2]
[403599824,1769410241414,-250.0,0.00015676,2]
[403599825,1769410241423,-250.0,0.00015676,2]
[403599828,1769410241433,-250.0,0.00015676,2]
[403599830,1769410241442,-854.2589148,0.00015676,2]
[403599832,1769410241451,-250.0,0.00015676,2]
[403599834,1769410241460,-250.0,0.00015676,2]
[403599836,1769410241469,-250.0,0.00015676,2]
[403599838,1769410241479,-250.0,0.00015676,2]
[403599839,1769410241488,-250.0,0.00015676,2]
[403599840,1769410241497,-250.0,0.00015676,2]
[403599841,1769410241507,-250.0,0.00015676,2]
[403599842,1769410241516,-250.0,0.00015676,2]
[403599843,1769410241525,-250.0,0.00015676,2]
[403599844,1769410241535,-250.0,0.00015676,2]
[403599845,1769410241544,-250.0,0.00015676,2]
[403599846,1769410241553,-250.0,0.00015676,2]
[403599847,1769410241563,-250.0,0.00015676,2]
[403599848,1769410241572,-250.0,0.00015676,2]
[403599849,1769410241582,-250.0,0.00015676,2]
[403599850,1769410241591,-250.0,0.00015676,2]
[403599851,1769410241601,-209.40437684,0.00015676,2]
[403599852,1769410241610,-250.0,0.00015676,2]
[403599853,1769410241619,-322.6107,0.00015676,2]
[403599854,1769410241629,-250.0,0.00015676,2]
[403599855,1769410241639,-250.0,0.00015676,2]
[403599856,1769410241650,-500.0,0.00015676,2]
[403599857,1769410241659,-250.0,0.00015676,2]
[403599858,1769410241668,-500.0,0.00015676,2]
[403599859,1769410241678,-500.0,0.00015676,2]
[403599860,1769410241687,-500.0,0.00015676,2]
[403599861,1769410241696,-500.0,0.00015676,2]
[403599862,1769410241705,-500.0,0.00015676,2]
[403599863,1769410241714,-250.0,0.00015676,2]
[403599864,1769410241723,-500.0,0.00015676,2]
[403599865,1769410241733,-500.0,0.00015676,2]
[403599866,1769410241743,-500.0,0.00015676,2]
[403599867,1769410241752,-721.12765535,0.00015676,2]
[403599868,1769410241761,-500.0,0.00015676,2]
[403599869,1769410241770,-500.0,0.00015676,2]
[403599870,1769410241780,-250.0,0.00015676,2]
[403599871,1769410241789,-250.0,0.00015676,2]
[403599872,1769410241799,-250.0,0.00015676,2]
[403599873,1769410241808,-250.0,0.00015676,2]
[403599874,1769410241817,-250.0,0.00015676,2]
[403599875,1769410241827,-250.0,0.00015676,2]
[403599876,1769410241836,-250.0,0.00015676,2]
[403599877,1769410241845,-250.0,0.00015676,2]
[403599878,1769410241855,-250.0,0.00015676,2]
[403599879,1769410241865,-211.39174164,0.00015676,2]
[403599880,1769410241877,-250.0,0.00015676,2]
[403599881,1769410241887,-250.0,0.00015676,2]
[403599882,1769410241896,-250.0,0.00015676,2]
[403599883,1769410241905,-250.0,0.00015676,2]
[403599884,1769410241913,-250.0,0.00015676,2]
[403599885,1769410241923,-250.0,0.00015676,2]
[403599886,1769410241932,-250.0,0.00015676,2]
[403599887,1769410241941,-250.0,0.00015676,2]
[403599888,1769410241951,-250.0,0.00015676,2]
[403599889,1769410241960,-250.0,0.00015676,2]
[403599890,1769410241968,-250.0,0.00015676,2]
[403599891,1769410241977,-250.0,0.00015676,2]
[403599892,1769410241986,-286.93679569,0.00015676,2]
[403599893,1769410241995,-1600.0,0.000157,5]
[403599894,1769410242004,-173.53,0.00015746,2]
[403599895,1769410242014,-167.65,0.00015756,2]
[403599896,1769410242022,-3200.0,0.000158,5]
[403599897,1769410242031,-152.0,0.00015856,4]
[403599898,1769410242040,-923.22863654,0.00015861,2]
[403599899,1769410242051,-318.15,0.0001587,2]
[403599900,1769410242060,-150.0,0.00015876,2]
[403599901,1769410242069,-500.0,0.00015876,2]
[403599902,1769410242078,-500.0,0.00015876,2]
[403599903,1769410242087,-500.0,0.00015876,2]
[403599904,1769410242097,-481.0,0.00015876,2]
[403599905,1769410242106,-150.0,0.00015876,2]
[403599906,1769410242116,-500.0,0.00015876,2]
[403599907,1769410242126,-500.0,0.00015876,2]
[403599908,1769410242136,-200.0,0.00015876,2]
[403599909,1769410242146,-150.0,0.00015876,2]
[403599910,1769410242156,-151.12842579,0.00015876,2]
[403599911,1769410242165,-195.24733956,0.00015885,2]
[403599912,1769410242174,-187.12881063,0.00015885,2]
[403599913,1769410242184,-190.85256819,0.00015885,2]
[403599914,1769410242193,-182.71177028,0.00015885,2]
[403599915,1769410242203,-4800.0,0.000159,5]
[403599916,1769410242213,-6719.06641575,0.0001591,2]
[403599917,1769410242222,-150.0,0.00015931,2]
[403599918,1769410242231,-624.52721142,0.00015931,2]
[403599919,1769410242241,-500.0,0.00015931,2]
[403599920,1769410242251,-500.0,0.00015931,2]
[403599921,1769410242260,-481.0,0.00015931,2]
[403599922,1769410242270,-500.0,0.00015931,2]
[403599923,1769410242279,-500.0,0.00015931,2]
[403599924,1769410242288,-150.0,0.00015931,2]
[403599925,1769410242298,-753.04363975,0.00015948,2]
[403599926,1769410242308,-190.85256819,0.00015948,2]
[403599927,1769410242317,-865.33,0.0001595,2]
[403599928,1769410242326,-3442.48960295,0.0001596,2]
[403599930,1769410242335,-675.38550237,0.0001596,2]
[403599931,1769410242345,-150.0,0.0001596,2]
[403599932,1769410242355,-200.0,0.00015986,2]
[403599933,1769410242367,-505.16925111,0.00015986,2]
[403599934,1769410242376,-500.0,0.00015986,2]
[403599935,1769410242386,-481.0,0.00015986,2]
[403599936,1769410242396,-500.0,0.00015986,2]
[403599937,1769410242405,-500.0,0.00015986,2]
[403599938,1769410242416,-150.0,0.00015986,2]
[403599939,1769410242425,-150.0,0.00016,2]
[403599940,1769410242436,-150.0,0.00016,2]
[403599941,1769410242447,-150.0,0.00016,2]
[403599942,1769410242457,-200.0,0.00016,2]
[403599943,1769410242467,-316.52250615,0.00016038,2]
[403599944,1769410242478,-150.0,0.0001604,2]
[403599945,1769410242488,-500.0,0.0001604,2]
[403599946,1769410242497,-481.0,0.0001604,2]
[403599947,1769410242507,-500.0,0.0001604,2]
[403599948,1769410242517,-411.30933942,0.0001604,2]
[403599949,1769410242527,-150.0,0.0001604,2]
[403599950,1769410242536,-3815.8720768,0.00016048,2]
[403599951,1769410242546,-371056.5121385,0.00016048,2]
[403599952,1769410242555,-12915.0831428,0.00016048,2]
[403599953,1769410242564,-148483.9947699,0.00016048,2]
[403599954,1769410242573,-81529.78167107,0.00016048,2]
[403599955,1769410242729,-6638.90801525,0.00016048,2]
[403599973,1769410246496,-383.24211587,0.00016,2]
[403599974,1769410246506,-979.06873923,0.00016048,2]
[403599976,1769410246766,-5386.47098568,0.00016048,2]
[403599977,1769410246778,-1837.35052301,0.00016048,2]
[403599978,1769410246790,-603.41291798,0.00016048,2]
[403599979,1769410246896,-716.99396338,0.00016048,2]
[403599981,1769410246971,-2473.07117054,0.00016048,2]
[403599993,1769411140055,-248.0,0.0001192,2]
[403599994,1769411199216,88.23780216,0.00011635,2]
[403599995,1769411415842,-3574.72219784,0.00011635,2]
[403599996,1769411415863,-158.54,0.0001192,2]
[403599997,1769411415882,-302.44852871,0.00012799,2]
[403599998,1769411415903,-253.31238298,0.00012799,2]
[403599999,1769411415922,-158.54,0.00013411,2]
[403600000,1769411415944,-166.66,0.00013614,2]
[403600001,1769411415964,-166.66,0.000139,2]
[403600002,1769411415985,-171.44,0.00013958,2]
[403600003,1769411416006,-166.66,0.00014187,2]
[403600004,1769411416029,-241.48,0.00014219,2]
[403600005,1769411416050,-165.67,0.00014255,2]
[403600006,1769411416070,-348.4620376,0.00014281,2]
[403600007,1769411416092,-166.66,0.00014473,2]
[403600008,1769411416113,-696.0,0.0001455,2]
[403600009,1769411416134,-150.0,0.00014567,2]
[403600010,1769411416155,-353.0,0.00014631,2]
[403600011,1769411416175,-151.0,0.00014668,2]
[403600012,1769411416195,-151.0,0.00014668,2]
[403600013,1769411416220,-7457.74485287,0.00014671,2]
[403600019,1769411432782,-670.50807902,0.00014671,2]
[403600020,1769411432793,-999.0,0.00014671,2]
[403600021,1769411432921,-21344.75340975,0.00014671,2]
[403600022,1769411432933,-2379.46437723,0.00014671,2]
[403600023,1769411432944,-508.0,0.00014671,2]
[403600032,1769411438573,-11489.70347207,0.00014671,2]
[403600034,1769411438585,-337.28380597,0.00014671,2]
[403600036,1769411438598,-697.29541692,0.00014671,2]
[403600039,1769411438610,-3815.09415581,0.00014671,2]
[403600041,1769411438621,-2794.2763082,0.00014671,2]
[403600050,1769411438697,-4478.58728033,0.00014671,2]
[403600052,1769411438712,-324421.4836357,0.00014671,2]
[403600055,1769411438794,-192332.38279521,0.00014671,2]
[403600063,1769411440988,-1069.94162526,0.00014671,2]
[403600064,1769411441038,-425204.48078566,0.00014671,2]
[403600065,1769411441050,-1200.0,0.00014759,2]
[403600066,1769411441060,-300.0,0.0001476,2]
[403600067,1769411441070,-166.66,0.0001476,2]
[403600068,1769411441080,-300.0,0.00014761,2]
[403600069,1769411441089,-500.0,0.00014762,2]
[403600070,1769411441099,-267.65652349,0.00014762,2]
[403600071,1769411441108,-209.69024363,0.00014762,2]
[403600072,1769411441118,-151.0,0.00014762,2]
[403600073,1769411441128,-151.0,0.00014762,2]
[403600074,1769411441138,-151.0,0.00014762,2]
[403600075,1769411441148,-151.0,0.00014762,2]
[403600076,1769411441158,-151.0,0.00014762,2]
[403600077,1769411441168,-151.0,0.00014762,2]
[403600078,1769411441178,-151.0,0.00014762,2]
[403600079,1769411441187,-288.61790626,0.00014762,2]
[403600080,1769411441197,-969.26,0.00014771,2]
[403600081,1769411441207,-13215.51,0.00014771,2]
[403600082,1769411441216,-1000.0,0.00014875,2]
[403600083,1769411441226,-158.54,0.00014901,2]
[403600084,1769411441236,-251.58811045,0.00015006,2]
[403600085,1769411441246,-451.0,0.00015006,2]
[403600086,1769411441256,-166.66,0.00015047,2]
[403600087,1769411441266,-451.0,0.00015061,2]
[403600088,1769411441275,-304.90720687,0.0001509,2]
[403600089,1769411441285,-348.46537928,0.0001509,2]
[403600090,1769411441294,-543.93267796,0.0001509,2]
[403600091,1769411441304,-300.0,0.00015106,2]
[403600092,1769411441313,-150.0,0.00015107,2]
[403600093,1769411441323,-500.0,0.00015107,2]
[403600094,1769411441333,-203.16013322,0.00015107,2]
[403600095,1769411441342,-500.0,0.00015107,2]
[403600096,1769411441352,-650.0,0.00015107,2]
[403600097,1769411441361,-500.0,0.00015107,2]
[403600098,1769411441371,-150.0,0.00015107,2]
[403600099,1769411441381,-500.0,0.00015107,2]
[403600100,1769411441391,-150.0,0.00015107,2]
[403600101,1769411441400,-500.0,0.00015107,2]
[403600102,1769411441409,-150.96094425,0.00015107,2]
[403600103,1769411441418,-500.0,0.00015107,2]
[403600104,1769411441427,-451.0,0.00015116,2]
[403600105,1769411441437,-562.32,0.00015123,2]
[403600106,1769411441447,-484.73,0.00015123,2]
[403600107,1769411441457,-484.73,0.00015123,2]
[403600108,1769411441466,-484.73,0.00015123,2]
[403600109,1769411441476,-483.73,0.00015123,2]
[403600110,1769411441486,-968.6,0.00015123,2]
[403600111,1769411441495,-484.73,0.00015123,2]
[403600112,1769411441504,-484.73,0.00015123,2]
[403600113,1769411441513,-484.73,0.00015123,2]
[403600114,1769411441524,-484.73,0.00015123,2]
[403600115,1769411441533,-484.53,0.00015123,2]
[403600116,1769411441543,-500.0,0.00015123,2]
[403600117,1769411441552,-500.0,0.00015162,2]
[403600118,1769411441562,-500.0,0.00015162,2]
[403600119,1769411441572,-650.0,0.00015162,2]
[403600120,1769411441582,-500.0,0.00015162,2]
[403600121,1769411441591,-500.0,0.00015162,2]
[403600122,1769411441602,-150.0,0.00015162,2]
[403600123,1769411441611,-500.0,0.00015162,2]
[403600124,1769411441620,-500.0,0.00015162,2]
[403600125,1769411441630,-451.0,0.0001517,2]
[403600126,1769411441639,-468.76,0.00015192,2]
[403600127,1769411441648,-506.89681003,0.00015217,2]
[403600128,1769411441658,-500.0,0.00015217,2]
[403600129,1769411441667,-650.0,0.00015217,2]
[403600130,1769411441677,-500.0,0.00015217,2]
[403600131,1769411441687,-500.0,0.00015217,2]
[403600132,1769411441696,-150.0,0.00015217,2]
[403600133,1769411441710,-500.0,0.00015217,2]
[403600134,1769411441719,-500.0,0.00015217,2]
[403600135,1769411441729,-451.0,0.00015225,2]
[403600136,1769411441739,-500.0,0.0001526,2]
[403600137,1769411441749,-500.0,0.0001526,2]
[403600138,1769411441759,-200.0,0.0001526,2]
[403600139,1769411441768,-150.0,0.0001526,2]
[403600140,1769411441781,-151.12842579,0.0001526,2]
[403600141,1769411441791,-222.04101513,0.0001527,2]
[403600142,1769411441800,-500.0,0.0001527,2]
[403600143,1769411441809,-500.0,0.0001527,2]
[403600144,1769411441818,-500.0,0.0001527,2]
[403600145,1769411441827,-500.0,0.0001527,2]
[403600146,1769411441836,-517.76410072,0.0001527,2]
[403600147,1769411441845,-500.0,0.0001527,2]
[403600148,1769411441855,-500.0,0.0001527,2]
[403600149,1769411441864,-500.0,0.0001527,2]
[403600150,1769411441873,-500.0,0.0001527,2]
[403600151,1769411441882,-500.0,0.0001527,2]
[403600152,1769411441892,-500.0,0.0001527,2]
[403600153,1769411441901,-500.0,0.0001527,2]
[403600154,1769411441910,-500.0,0.0001527,2]
[403600155,1769411441920,-500.0,0.0001527,2]
[403600156,1769411441930,-500.0,0.0001527,2]
[403600157,1769411441940,-500.0,0.0001527,2]
[403600158,1769411441949,-500.0,0.0001527,2]
[403600159,1769411441958,-500.0,0.0001527,2]
[403600160,1769411441967,-500.0,0.00015271,2]
[403600161,1769411441977,-650.0,0.00015271,2]
[403600162,1769411441986,-500.0,0.00015271,2]
[403600163,1769411441996,-500.0,0.00015271,2]
[403600164,1769411442005,-258.36965389,0.00015271,2]
[403600165,1769411442015,-507.52129439,0.00015271,2]
[403600166,1769411442026,-500.0,0.00015271,2]
[403600167,1769411442036,-451.0,0.0001528,2]
[403600168,1769411442045,-8762.44,0.0001531,2]
[403600169,1769411442054,-150.99,0.0001531,2]
[403600170,1769411442063,-341.85,0.0001531,2]
[403600171,1769411442073,-1197.45,0.0001531,2]
[403600172,1769411442082,-299.99,0.0001531,2]
[403600173,1769411442091,-5248.45,0.0001531,2]
[403600174,1769411442100,-9999.99,0.0001531,2]
[403600175,1769411442109,-2118.57,0.0001531,2]
[403600176,1769411442118,-999.99,0.0001531,2]
[403600177,1769411442128,-212.6,0.0001531,2]
[403600178,1769411442137,-500.0,0.00015315,2]
[403600179,1769411442147,-500.0,0.00015315,2]
[403600180,1769411442156,-150.0,0.00015315,2]
[403600181,1769411442166,-500.0,0.00015326,2]
[403600182,1769411442175,-650.0,0.00015326,2]
[403600183,1769411442184,-500.0,0.00015326,2]
[403600184,1769411442194,-500.0,0.00015326,2]
[403600185,1769411442203,-500.0,0.00015326,2]
[403600186,1769411442213,-451.0,0.00015335,2]
[403600187,1769411442223,-152.18185141,0.0001537,2]
[403600188,1769411442232,-500.0,0.0001537,2]
[403600189,1769411442242,-150.0,0.0001537,2]
[403600190,1769411442252,-500.0,0.00015381,2]
[403600191,1769411442261,-650.0,0.00015381,2]
[403600192,1769411442270,-500.0,0.00015381,2]
[403600193,1769411442280,-500.0,0.00015381,2]
[403600194,1769411442288,-500.0,0.00015381,2]
[403600195,1769411442297,-500.0,0.00015381,2]
[403600196,1769411442307,-150.0,0.00015381,2]
[403600197,1769411442316,-500.0,0.00015385,2]
[403600198,1769411442325,-504.91738669,0.00015385,2]
[403600199,1769411442334,-500.0,0.00015385,2]
[403600200,1769411442343,-485.70526209,0.00015385,2]
[403600201,1769411442352,-500.0,0.00015385,2]
[403600202,1769411442362,-451.0,0.0001539,2]
[403600203,1769411442371,-411.30933942,0.00015424,2]
[403600204,1769411442380,-150.0,0.00015424,2]
[403600205,1769411442389,-539.8809,0.00015434,2]
[403600206,1769411442399,-500.0,0.00015436,2]
[403600207,1769411442411,-650.0,0.00015436,2]
[403600208,1769411442421,-500.0,0.00015436,2]
[403600209,1769411442432,-500.0,0.00015436,2]
[403600210,1769411442441,-500.0,0.00015436,2]
[403600211,1769411442451,-500.0,0.00015436,2]
[403600212,1769411442462,-150.0,0.00015436,2]
[403600213,1769411442471,-451.0,0.00015444,2]
[403600214,1769411442480,-11572.55364356,0.00015455,2]
[403600215,1769411442490,-150.0,0.00015479,2]
[403600216,1769411442500,-500.0,0.00015491,2]
[403600217,1769411442509,-650.0,0.00015491,2]
[403600218,1769411442518,-500.0,0.00015491,2]
[403600219,1769411442528,-500.0,0.00015491,2]
[403600220,1769411442538,-500.0,0.00015491,2]
[403600221,1769411442547,-500.0,0.00015491,2]
[403600222,1769411442556,-200.0,0.00015491,2]
[403600223,1769411442567,-451.0,0.00015499,2]
[403600224,1769411442576,-452.5683,0.00015523,2]
[403600225,1769411442586,-237.0846,0.00015523,2]
[403600226,1769411442595,-201.23255829,0.00015534,2]
[403600227,1769411442604,-889.92,0.00015534,2]
[403600228,1769411442614,-153.1,0.00015534,2]
[403600229,1769411442623,-468.65,0.00015534,2]
[403600230,1769411442632,-344.36,0.00015534,2]
[403600231,1769411442642,-162.44,0.00015534,2]
[403600232,1769411442652,-179.98,0.00015534,2]
[403600233,1769411442662,-301.15,0.00015534,2]
[403600234,1769411442671,-150.0,0.00015534,2]
[403600235,1769411442681,-150.0,0.00015534,2]
[403600236,1769411442690,-1624.6,0.00015534,2]
[403600237,1769411442699,-468.53,0.00015534,2]
[403600238,1769411442712,-172.23,0.00015534,2]
[403600239,1769411442721,-300.9,0.00015534,2]
[403600240,1769411442730,-179.98,0.00015534,2]
[403600241,1769411442740,-558.94,0.00015534,2]
[403600242,1769411442751,-172.23,0.00015534,2]
[403600243,1769411442760,-172.23,0.00015534,2]
[403600244,1769411442770,-179.98,0.00015534,2]
[403600245,1769411442780,-558.94,0.00015534,2]
[403600246,1769411442790,-300.0,0.00015534,2]
[403600247,1769411442799,-150.0,0.00015534,2]
[403600248,1769411442808,-558.94,0.00015534,2]
[403600249,1769411442817,-172.23,0.00015534,2]
[403600250,1769411442827,-179.98,0.00015534,2]
[403600251,1769411442836,-150.0,0.00015534,2]
[403600252,1769411442846,-468.76,0.00015534,2]
[403600253,1769411442855,-558.94,0.00015534,2]
[403600254,1769411442864,-179.98,0.00015534,2]
[403600255,1769411442873,-172.23,0.00015534,2]
[403600256,1769411442882,-150.0,0.00015534,2]
[403600257,1769411442891,-150.0,0.00015534,2]
[403600258,1769411442900,-468.76,0.00015534,2]
[403600259,1769411442909,-172.23,0.00015534,2]
[403600260,1769411442919,-179.98,0.00015534,2]
[403600261,1769411442928,-150.0,0.00015534,2]
[403600262,1769411442937,-468.76,0.00015534,2]
[403600263,1769411442947,-558.94,0.00015534,2]
[403600264,1769411442956,-179.98,0.00015534,2]
[403600266,1769411442966,-150.0,0.00015534,2]
[403600268,1769411442976,-468.76,0.00015534,2]
[403600269,1769411442985,-150.0,0.00015534,2]
[403600270,1769411442995,-558.94,0.00015534,2]
[403600271,1769411443004,-172.23,0.00015534,2]
[403600272,1769411443013,-172.23,0.00015534,2]
[403600276,1769411443300,-179.98,0.00015534,2]